fUST/lending_fUST_20250603
["ID","MTS","AMOUNT","RATE_DAILY","PERIOD"]
[363846364,1748897447249,-440.0,0.000178,2]
[363846365,1748897447259,-488.99976727,0.000178,2]
[363846366,1748897447269,-410.51,0.000178,2]
[363846367,1748897447279,-204.85479238,0.000179,2]
[363846368,1748897447289,-868.69,0.00017998,2]
[363846369,1748897447300,-972.53,0.00017999,2]
[363846370,1748897447311,-433.80157521,0.00017999,2]
[363846371,1748897447321,-440.0,0.00017999,2]
[363846372,1748897447332,-440.0,0.00017999,2]
[363846373,1748897447342,-151.0,0.00017999,2]
[363846374,1748897447352,-151.0,0.00017999,2]
[363846375,1748897447362,-151.0,0.00017999,2]
[363846376,1748897447371,-242.106804,0.00017999,2]
[363846377,1748897447381,-242.106804,0.00017999,2]
[363846378,1748897447391,-151.0,0.00018,2]
[363846379,1748897447401,-151.0,0.00018,2]
[363846380,1748897447411,-153.482722,0.00018,2]
[363846381,1748897447421,-153.482722,0.00018,2]
[363846382,1748897447430,-151.0,0.00018,2]
[363846383,1748897447440,-156.16805,0.00018,2]
[363846384,1748897447456,-151.0,0.00018,2]
[363846385,1748897447466,-151.0,0.00018,2]
[363846386,1748897447476,-165.344969,0.00018,2]
[363846387,1748897447486,-440.0,0.00018071,2]
[363846388,1748897447495,-440.0,0.00018072,2]
[363846389,1748897447505,-440.0,0.00018072,2]
[363846390,1748897447515,-440.0,0.00018072,2]
[363846391,1748897447524,-474.02,0.00018072,2]
[363846392,1748897447534,-714.24,0.00018072,2]
[363846393,1748897447544,-649.7,0.00018072,2]
[363846394,1748897447554,-440.0,0.00018072,2]
[363846395,1748897447565,-440.0,0.00018072,2]
[363846396,1748897447576,-440.0,0.00018072,2]
[363846397,1748897447586,-440.0,0.00018072,2]
[363846398,1748897447596,-440.0,0.00018072,2]
[363846399,1748897447611,-495.49,0.00018072,2]
[363846400,1748897447621,-206.16,0.00018072,2]
[363846401,1748897447631,-440.0,0.00018072,2]
[363846402,1748897447641,-440.0,0.00018072,2]
[363846403,1748897447651,-440.0,0.00018072,2]
[363846404,1748897447662,-440.0,0.00018073,2]
[363846405,1748897447673,-884.91,0.00018073,2]
[363846406,1748897447685,-440.0,0.00018073,2]
[363846407,1748897447699,-440.0,0.00018073,2]
[363846408,1748897447710,-380.0,0.00018073,2]
[363846409,1748897447720,-561.9,0.00018073,2]
[363846410,1748897447730,-440.0,0.00018073,2]
[363846411,1748897447740,-476.93,0.00018073,2]
[363846412,1748897447751,-440.0,0.00018073,2]
[363846413,1748897447761,-380.0,0.00018073,2]
[363846414,1748897447771,-440.0,0.00018073,2]
[363846415,1748897447781,-440.0,0.00018073,2]
[363846416,1748897447792,-499.41,0.00018073,2]
[363846417,1748897447802,-440.0,0.00018073,2]
[363846418,1748897447812,-440.0,0.00018073,2]
[363846419,1748897447823,-491.56,0.00018073,2]
[363846420,1748897447833,-440.0,0.00018073,2]
[363846421,1748897447843,-440.0,0.00018074,2]
[363846422,1748897447853,-440.0,0.00018074,2]
[363846423,1748897447863,-380.0,0.00018074,2]
[363846424,1748897447874,-380.0,0.00018074,2]
[363846425,1748897447884,-440.0,0.00018074,2]
[363846426,1748897447894,-204.85479238,0.00018173,2]
[363846427,1748897447904,-300.0,0.00018246,2]
[363846428,1748897447914,-868.69,0.00018272,2]
[363846429,1748897447924,-972.53,0.00018273,2]
[363846430,1748897447933,-440.0,0.00018273,2]
[363846431,1748897447947,-420.0,0.00018273,2]
[363846432,1748897447958,-804.51524725,0.00018339,2]
[363846433,1748897447969,-440.0,0.00018345,2]
[363846434,1748897447979,-440.0,0.00018346,2]
[363846435,1748897447990,-217.5,0.00018346,2]
[363846436,1748897448000,-178.56,0.00018346,2]
[363846437,1748897448010,-474.02,0.00018346,2]
[363846438,1748897448021,-714.24,0.00018346,2]
[363846439,1748897448032,-649.7,0.00018346,2]
[363846440,1748897448043,-440.0,0.00018346,2]
[363846441,1748897448053,-440.0,0.00018346,2]
[363846442,1748897448064,-150.37,0.00018346,2]
[363846443,1748897448074,-440.0,0.00018346,2]
[363846444,1748897448084,-440.0,0.00018346,2]
[363846445,1748897448094,-495.49,0.00018346,2]
[363846446,1748897448105,-440.0,0.00018346,2]
[363846447,1748897448115,-370.0,0.00018346,2]
[363846448,1748897448125,-440.0,0.00018346,2]
[363846449,1748897448135,-152.867208,0.00018347,2]
[363846450,1748897448146,-440.0,0.00018347,2]
[363846451,1748897448156,-884.91,0.00018347,2]
[363846452,1748897448166,-440.0,0.00018347,2]
[363846453,1748897448177,-440.0,0.00018347,2]
[363846454,1748897448187,-561.9,0.00018347,2]
[363846455,1748897448199,-440.0,0.00018347,2]
[363846456,1748897448212,-440.0,0.00018347,2]
[363846457,1748897448222,-440.0,0.00018347,2]
[363846458,1748897448232,-440.0,0.00018347,2]
[363846459,1748897448242,-499.41,0.00018347,2]
[363846460,1748897448254,-440.0,0.00018347,2]
[363846461,1748897448265,-440.0,0.00018347,2]
[363846462,1748897448275,-491.56,0.00018347,2]
[363846463,1748897448285,-151.0,0.00018347,2]
[363846464,1748897448295,-151.0,0.00018347,2]
[363846465,1748897448305,-440.0,0.00018347,2]
[363846466,1748897448315,-563.04,0.00018348,2]
[363846467,1748897448324,-440.0,0.00018348,2]
[363846468,1748897448335,-440.0,0.00018348,2]
[363846469,1748897448345,-204.85479238,0.00018445,2]
[363846470,1748897448356,-972.53,0.00018547,2]
[363846471,1748897448527,-440.0,0.00018547,2]
[363846472,1748897448539,-160.0,0.00018569,2]
[363846473,1748897448550,-229.39799938,0.00018569,2]
[363846474,1748897448560,-160.0,0.00018569,2]
[363846475,1748897448570,-423.56953423,0.00018569,2]
[363846476,1748897448580,-440.0,0.00018619,2]
[363846477,1748897448590,-440.0,0.0001862,2]
[363846478,1748897448601,-474.02,0.0001862,2]
[363846479,1748897448611,-714.24,0.0001862,2]
[363846480,1748897448622,-649.7,0.0001862,2]
[363846481,1748897448631,-440.0,0.0001862,2]
[363846482,1748897448642,-440.0,0.0001862,2]
[363846483,1748897448652,-168.38,0.0001862,2]
[363846484,1748897448663,-440.0,0.0001862,2]
[363846485,1748897448673,-495.49,0.0001862,2]
[363846486,1748897448684,-360.0,0.0001862,2]
[363846487,1748897448695,-440.0,0.0001862,2]
[363846488,1748897448706,-440.0,0.00018621,2]
[363846489,1748897448716,-884.91,0.00018621,2]
[363846490,1748897448727,-440.0,0.00018621,2]
[363846491,1748897448738,-170.66,0.00018621,2]
[363846492,1748897448748,-561.9,0.00018621,2]
[363846493,1748897448758,-440.0,0.00018621,2]
[363846494,1748897448768,-440.0,0.00018621,2]
[363846495,1748897448778,-546.41,0.00018621,2]
[363846496,1748897448788,-440.0,0.00018621,2]
[363846497,1748897448799,-499.41,0.00018621,2]
[363846498,1748897448809,-337.82,0.00018621,2]
[363846499,1748897448819,-342.44,0.00018621,2]
[363846500,1748897448829,-491.56,0.00018621,2]
[363846501,1748897448839,-440.0,0.00018621,2]
[363846502,1748897448850,-440.0,0.00018622,2]
[363846503,1748897448860,-440.0,0.00018622,2]
[363846504,1748897448871,-204.85479238,0.00018718,2]
[363846505,1748897448881,-972.53,0.00018821,2]
[363846506,1748897448891,-440.0,0.00018821,2]
[363846507,1748897448901,-440.0,0.00018893,2]
[363846508,1748897448911,-440.0,0.00018894,2]
[363846509,1748897448921,-474.02,0.00018894,2]
[363846510,1748897448931,-714.24,0.00018894,2]
[363846511,1748897448941,-649.7,0.00018894,2]
[363846512,1748897448952,-440.0,0.00018894,2]
[363846513,1748897448962,-440.0,0.00018894,2]
[363846514,1748897448972,-440.0,0.00018894,2]
[363846515,1748897448981,-495.49,0.00018894,2]
[363846516,1748897448991,-440.0,0.00018894,2]
[363846517,1748897449001,-309.38,0.00018895,2]
[363846518,1748897449011,-884.91,0.00018895,2]
[363846519,1748897449021,-322.92,0.00018895,2]
[363846520,1748897449031,-561.9,0.00018895,2]
[363846521,1748897449041,-440.0,0.00018895,2]
[363846522,1748897449051,-228.96,0.00018895,2]
[363846523,1748897449061,-201.66,0.00018895,2]
[363846524,1748897449071,-499.41,0.00018895,2]
[363846525,1748897449080,-491.56,0.00018895,2]
[363846526,1748897449089,-440.0,0.00018895,2]
[363846527,1748897449099,-440.0,0.00018896,2]
[363846528,1748897449109,-868.69,0.00018896,2]
[363846529,1748897449119,-364.68,0.00018896,2]
[363846530,1748897449128,-1044.4527078,0.000189,2]
[363846531,1748897449138,-794.14,0.00018965,2]
[363846532,1748897449148,-204.85479238,0.00018991,2]
[363846533,1748897449157,-972.53,0.00019095,2]
[363846534,1748897449168,-440.0,0.00019095,2]
[363846535,1748897449178,-440.0,0.00019167,2]
[363846536,1748897449187,-440.0,0.00019168,2]
[363846537,1748897449198,-474.02,0.00019168,2]
[363846538,1748897449209,-714.24,0.00019168,2]
[363846539,1748897449220,-649.7,0.00019168,2]
[363846540,1748897449230,-440.0,0.00019168,2]
[363846541,1748897449239,-440.0,0.00019168,2]
[363846542,1748897449249,-440.0,0.00019168,2]
[363846543,1748897449259,-495.49,0.00019168,2]
[363846544,1748897449269,-440.0,0.00019168,2]
[363846545,1748897449278,-884.91,0.00019169,2]
[363846546,1748897449289,-561.9,0.00019169,2]
[363846547,1748897449299,-440.0,0.00019169,2]
[363846548,1748897449309,-499.41,0.00019169,2]
[363846549,1748897449319,-491.56,0.00019169,2]
[363846550,1748897449329,-440.0,0.00019169,2]
[363846551,1748897449339,-440.0,0.0001917,2]
[363846552,1748897449349,-151.0,0.0001917,2]
[363846553,1748897449359,-181.654485,0.00019178,2]
[363846554,1748897449368,-204.85479238,0.00019264,2]
[363846555,1748897449378,-972.53,0.00019369,2]
[363846556,1748897449388,-440.0,0.00019369,2]
[363846557,1748897449398,-440.0,0.00019441,2]
[363846558,1748897449408,-440.0,0.00019442,2]
[363846559,1748897449417,-474.02,0.00019442,2]
[363846560,1748897449429,-714.24,0.00019442,2]
[363846561,1748897449441,-649.7,0.00019442,2]
[363846562,1748897449451,-440.0,0.00019442,2]
[363846563,1748897449460,-440.0,0.00019442,2]
[363846564,1748897449471,-440.0,0.00019442,2]
[363846565,1748897449481,-495.49,0.00019442,2]
[363846566,1748897449491,-440.0,0.00019442,2]
[363846567,1748897449500,-884.91,0.00019443,2]
[363846568,1748897449511,-561.9,0.00019443,2]
[363846569,1748897449520,-440.0,0.00019443,2]
[363846570,1748897449530,-499.41,0.00019443,2]
[363846571,1748897449540,-491.56,0.00019443,2]
[363846572,1748897449549,-440.0,0.00019443,2]
[363846573,1748897449559,-440.0,0.00019444,2]
[363846574,1748897449569,-204.85479238,0.00019536,2]
[363846575,1748897449579,-254.23416737,0.00019585,2]
[363846576,1748897449588,-268.623,0.00019614,2]
[363846577,1748897449598,-972.53,0.00019643,2]
[363846578,1748897449608,-440.0,0.00019643,2]
[363846579,1748897449617,-440.0,0.00019715,2]
[363846580,1748897449627,-440.0,0.00019716,2]
[363846581,1748897449636,-474.02,0.00019716,2]
[363846582,1748897449646,-714.24,0.00019716,2]
[363846583,1748897449655,-649.7,0.00019716,2]
[363846584,1748897449665,-440.0,0.00019716,2]
[363846585,1748897449675,-440.0,0.00019716,2]
[363846586,1748897449685,-440.0,0.00019716,2]
[363846587,1748897449694,-495.49,0.00019716,2]
[363846588,1748897449704,-440.0,0.00019716,2]
[363846589,1748897449714,-884.91,0.00019717,2]
[363846590,1748897449723,-561.9,0.00019717,2]
[363846591,1748897449733,-440.0,0.00019717,2]
[363846592,1748897449743,-499.41,0.00019717,2]
[363846593,1748897449752,-491.56,0.00019717,2]
[363846594,1748897449762,-440.0,0.00019717,2]
[363846595,1748897449772,-440.0,0.00019718,2]
[363846596,1748897449782,-800.0,0.00019766,2]
[363846597,1748897449792,-204.85479238,0.00019809,2]
[363846598,1748897449801,-151.0,0.00019917,2]
[363846599,1748897449811,-972.53,0.00019917,2]
[363846600,1748897449821,-440.0,0.00019917,2]
[363846601,1748897449831,-163.085573,0.00019917,2]
[363846602,1748897449840,-335.691731,0.00019917,2]
[363846603,1748897449850,-335.691731,0.00019917,2]
[363846604,1748897449860,-220.822421,0.00019917,2]
[363846605,1748897449870,-220.822421,0.00019917,2]
[363846606,1748897449879,-151.0,0.00019917,2]
[363846607,1748897449889,-440.0,0.00019989,2]
[363846608,1748897449899,-272.27440214,0.0001999,2]
[363846609,1748897449908,-474.02,0.0001999,2]
[363846610,1748897449918,-714.24,0.0001999,2]
[363846611,1748897449928,-649.7,0.0001999,2]
[363846612,1748897449938,-355.45,0.0001999,2]
[363846613,1748897449948,-440.0,0.0001999,2]
[363846614,1748897449958,-151.808954,0.0001999,2]
[363846615,1748897449967,-151.0,0.0001999,2]
[363846616,1748897449977,-440.0,0.0001999,2]
[363846617,1748897449987,-495.49,0.0001999,2]
[363846618,1748897449996,-440.0,0.0001999,2]
[363846619,1748897450006,-884.91,0.00019991,2]
[363846620,1748897450016,-561.9,0.00019991,2]
[363846621,1748897450025,-440.0,0.00019991,2]
[363846622,1748897450035,-499.41,0.00019991,2]
[363846623,1748897450046,-491.56,0.00019991,2]
[363846624,1748897450056,-440.0,0.00019991,2]
[363846625,1748897450065,-440.0,0.00019992,2]
[363846626,1748897450075,-868.69,0.00019992,2]
[363846627,1748897450084,-804.51524725,0.00020075,2]
[363846628,1748897450094,-204.85479238,0.00020082,2]
[363846629,1748897450104,-500.0,0.00020151,2]
[363846630,1748897450113,-500.0,0.00020151,2]
[363846631,1748897450123,-500.0,0.00020151,2]
[363846632,1748897450133,-207.4,0.00020151,2]
[363846633,1748897450142,-500.0,0.00020151,2]
[363846634,1748897450152,-500.0,0.00020151,2]
[363846635,1748897450161,-500.0,0.00020151,2]
[363846636,1748897450170,-500.0,0.00020151,2]
[363846637,1748897450180,-500.0,0.00020151,2]
[363846638,1748897450190,-500.0,0.00020151,2]
[363846639,1748897450201,-500.0,0.00020151,2]
[363846640,1748897450213,-500.0,0.00020151,2]
[363846641,1748897450222,-500.0,0.00020151,2]
[363846642,1748897450232,-500.0,0.00020151,2]
[363846643,1748897450242,-500.0,0.00020151,2]
[363846644,1748897450251,-500.0,0.00020151,2]
[363846645,1748897450261,-151.0,0.00020152,2]
[363846646,1748897450271,-151.0,0.00020152,2]
[363846647,1748897450279,-278.777961,0.00020152,2]
[363846648,1748897450290,-242.106804,0.00020152,2]
[363846649,1748897450301,-242.106804,0.00020152,2]
[363846650,1748897450310,-404.458362,0.00020187,2]
[363846651,1748897450320,-972.53,0.00020191,2]
[363846652,1748897450330,-440.0,0.00020191,2]
[363846653,1748897450339,-440.0,0.00020263,2]
[363846654,1748897450348,-474.02,0.00020264,2]
[363846655,1748897450358,-714.24,0.00020264,2]
[363846656,1748897450368,-649.7,0.00020264,2]
[363846657,1748897450377,-440.0,0.00020264,2]
[363846658,1748897450387,-440.0,0.00020264,2]
[363846659,1748897450397,-495.49,0.00020264,2]
[363846660,1748897450406,-440.0,0.00020264,2]
[363846661,1748897450416,-884.91,0.00020265,2]
[363846662,1748897450426,-561.9,0.00020265,2]
[363846663,1748897450435,-440.0,0.00020265,2]
[363846664,1748897450445,-499.41,0.00020265,2]
[363846665,1748897450456,-491.56,0.00020265,2]
[363846666,1748897450466,-440.0,0.00020265,2]
[363846667,1748897450475,-440.0,0.00020266,2]
[363846668,1748897450485,-204.85479238,0.00020355,3]
[363846669,1748897450495,-972.53,0.00020465,2]
[363846670,1748897450505,-440.0,0.00020465,2]
[363846671,1748897450514,-440.0,0.00020536,2]
[363846672,1748897450523,-474.02,0.00020538,2]
[363846673,1748897450534,-714.24,0.00020538,2]
[363846674,1748897450543,-649.7,0.00020538,2]
[363846675,1748897450553,-578.32829244,0.00020538,2]
[363846676,1748897450563,-440.0,0.00020538,2]
[363846677,1748897450572,-495.49,0.00020538,2]
[363846678,1748897450582,-440.0,0.00020538,2]
[363846679,1748897450592,-884.91,0.00020539,2]
[363846680,1748897450602,-561.9,0.00020539,2]
[363846681,1748897450611,-440.0,0.00020539,2]
[363846682,1748897450621,-499.41,0.00020539,2]
[363846683,1748897450630,-491.56,0.00020539,2]
[363846684,1748897450640,-151.0,0.00020539,2]
[363846685,1748897450650,-151.0,0.00020539,2]
[363846686,1748897450660,-440.0,0.00020539,2]
[363846687,1748897450669,-440.0,0.0002054,2]
[363846688,1748897450679,-500.0,0.00020547,2]
[363846689,1748897450688,-204.85479238,0.00020627,3]
[363846690,1748897450698,-1588.27,0.00020689,2]
[363846691,1748897450707,-868.69,0.00020689,2]
[363846692,1748897450717,-151.0,0.0002069,2]
[363846693,1748897450727,-151.0,0.0002069,2]
[363846694,1748897450737,-151.0,0.0002069,2]
[363846695,1748897450746,-156.463588,0.0002069,2]
[363846696,1748897450756,-485.577347,0.0002069,2]
[363846697,1748897450766,-156.463588,0.0002069,2]
[363846698,1748897450776,-485.577347,0.0002069,2]
[363846699,1748897450786,-12668.79298183,0.0002069,10]
[363846700,1748897450796,-1872.4,0.000207,2]
[363846701,1748897450806,-39136.34,0.000207,2]
[363846702,1748897450816,-972.53,0.00020739,2]
[363846703,1748897450825,-440.0,0.00020739,2]
[363846704,1748897450836,-151.0,0.00020739,2]
[363846705,1748897450844,-242.106804,0.00020739,2]
[363846706,1748897450853,-242.106804,0.00020739,2]
[363846707,1748897450861,-440.0,0.0002081,2]
[363846708,1748897450871,-474.02,0.00020812,2]
[363846709,1748897450880,-714.24,0.00020812,2]
[363846710,1748897450888,-649.7,0.00020812,2]
[363846711,1748897450896,-440.0,0.00020812,2]
[363846712,1748897450906,-495.49,0.00020812,2]
[363846713,1748897450915,-440.0,0.00020812,2]
[363846714,1748897450925,-884.91,0.00020813,2]
[363846715,1748897450934,-561.9,0.00020813,2]
[363846716,1748897450974,-440.0,0.00020813,2]
[363846717,1748897450984,-499.41,0.00020813,2]
[363846718,1748897450994,-491.56,0.00020813,2]
[363846719,1748897451004,-440.0,0.00020813,2]
[363846720,1748897451013,-440.0,0.00020814,2]
[363846721,1748897451023,-800.0,0.00020862,2]
[363846722,1748897451032,-204.85479238,0.000209,4]
[363846723,1748897451041,-151.0,0.000209,3]
[363846724,1748897451050,-972.53,0.00021013,2]
[363846725,1748897451060,-440.0,0.00021013,2]
[363846726,1748897451070,-440.0,0.00021084,2]
[363846727,1748897451079,-474.02,0.00021086,2]
[363846728,1748897451090,-714.24,0.00021086,2]
[363846729,1748897451100,-649.7,0.00021086,2]
[363846730,1748897451110,-502.26,0.00021086,2]
[363846731,1748897451122,-495.49,0.00021086,2]
[363846732,1748897451131,-440.0,0.00021086,2]
[363846733,1748897451141,-884.91,0.00021087,2]
[363846734,1748897451150,-561.9,0.00021087,2]
[363846735,1748897451160,-440.0,0.00021087,2]
[363846736,1748897451170,-499.41,0.00021087,2]
[363846737,1748897451179,-491.56,0.00021087,2]
[363846738,1748897451189,-202.76,0.00021087,2]
[363846739,1748897451201,-382.26,0.00021088,2]
[363846740,1748897451214,-500.0,0.00021095,3]
[363846741,1748897451224,-204.85479238,0.00021173,4]
[363846742,1748897451234,-986.35,0.00021175,2]
[363846743,1748897451243,-500.0,0.000212,2]
[363846744,1748897451253,-986.35,0.00021275,2]
[363846745,1748897451262,-972.53,0.00021287,2]
[363846746,1748897451273,-440.0,0.00021287,2]
[363846747,1748897451282,-151.0,0.00021287,2]
[363846748,1748897451293,-440.0,0.00021358,2]
[363846749,1748897451303,-474.02,0.0002136,2]
[363846750,1748897451313,-714.24,0.0002136,2]
[363846751,1748897451322,-649.7,0.0002136,2]
[363846752,1748897451331,-495.49,0.0002136,2]
[363846753,1748897451340,-440.0,0.0002136,2]
[363846754,1748897451349,-884.91,0.00021361,2]
[363846755,1748897451357,-561.9,0.00021361,2]
[363846756,1748897451366,-440.0,0.00021361,2]
[363846757,1748897451376,-499.41,0.00021361,2]
[363846758,1748897451385,-491.56,0.00021361,2]
[363846759,1748897451393,-868.69,0.00021374,2]
[363846760,1748897451403,-986.35,0.00021375,2]
[363846761,1748897451412,-204.85479238,0.00021445,5]
[363846762,1748897451421,-986.35,0.00021475,2]
[363846763,1748897451430,-215.0738,0.0002152,2]
[363846764,1748897451438,-972.53,0.00021561,2]
[363846765,1748897451447,-440.0,0.00021561,2]
[363846766,1748897451456,-986.35,0.00021575,2]
[363846767,1748897451464,-1254.26,0.000216,2]
[363846768,1748897451472,-440.0,0.00021632,2]
[363846769,1748897451481,-474.02,0.00021633,2]
[363846770,1748897451489,-714.24,0.00021633,2]
[363846771,1748897451498,-649.7,0.00021633,2]
[363846772,1748897451505,-495.49,0.00021633,2]
[363846773,1748897451513,-440.0,0.00021633,2]
[363846774,1748897451524,-884.91,0.00021635,2]
[363846775,1748897451533,-561.9,0.00021635,2]
[363846776,1748897451541,-440.0,0.00021635,2]
[363846777,1748897451549,-499.41,0.00021635,2]
[363846778,1748897451559,-491.56,0.00021635,2]
[363846779,1748897451568,-210.79572876,0.00021643,4]
[363846780,1748897451579,-986.35,0.00021675,2]
[363846781,1748897451589,-204.85479238,0.00021718,5]
[363846782,1748897451598,-500.0,0.00021725,2]
[363846783,1748897451608,-1000.0,0.00021748,2]
[363846784,1748897451618,-986.35,0.00021775,2]
[363846785,1748897451627,-39136.34,0.000218,2]
[363846786,1748897451637,-151.941526,0.000218,2]
[363846787,1748897451646,-151.0,0.000218,2]
[363846788,1748897451656,-804.51524725,0.0002181,2]
[363846789,1748897451666,-972.53,0.00021835,2]
[363846790,1748897451675,-434.08,0.00021835,2]
[363846791,1748897451686,-986.35,0.00021875,2]
[363846792,1748897451696,-440.0,0.00021906,2]
[363846793,1748897451706,-474.02,0.00021907,2]
[363846794,1748897451716,-714.24,0.00021907,2]
[363846795,1748897451726,-649.7,0.00021907,2]
[363846796,1748897451737,-495.49,0.00021907,2]
[363846797,1748897451746,-440.0,0.00021907,2]
[363846798,1748897451756,-884.91,0.00021909,2]
[363846799,1748897451766,-561.9,0.00021909,2]
[363846800,1748897451775,-440.0,0.00021909,2]
[363846801,1748897451786,-499.41,0.00021909,2]
[363846802,1748897451796,-491.56,0.00021909,2]
[363846803,1748897451807,-200.0,0.00021917,2]
[363846804,1748897451817,-500.0,0.00021917,2]
[363846805,1748897451828,-500.0,0.00021917,2]
[363846806,1748897451838,-500.0,0.00021917,2]
[363846807,1748897451849,-500.0,0.00021917,2]
[363846808,1748897451859,-500.0,0.00021917,2]
[363846809,1748897451869,-500.0,0.00021917,2]
[363846810,1748897451879,-500.0,0.00021917,2]
[363846811,1748897451889,-500.0,0.00021917,2]
[363846812,1748897451899,-500.0,0.00021917,2]
[363846813,1748897451910,-183.04845287,0.00021917,2]
[363846814,1748897451920,-151.0,0.00021918,2]
[363846815,1748897451930,-151.0,0.00021918,2]
[363846816,1748897451939,-237.13056107,0.00021918,2]
[363846817,1748897451949,-150.0,0.00021918,2]
[363846818,1748897451958,-800.0,0.00021958,2]
[363846819,1748897451969,-151.0,0.00021975,7]
[363846820,1748897451980,-1054.348671,0.00021975,7]
[363846821,1748897451990,-1054.348671,0.00021975,7]
[363846822,1748897452000,-986.35,0.00021975,6]
[363846823,1748897452011,-151.0,0.0002199,7]
[363846824,1748897452020,-151.0,0.0002199,7]
[363846825,1748897452030,-204.85479238,0.00021991,6]
[363846826,1748897452040,-17160.90957298,0.00021999,2]
[363846827,1748897452169,-3054.58320512,0.00021999,2]
[363846828,1748897452403,-440.0,0.00016701,2]
[363846829,1748897452413,-89.27407446,0.00016701,2]
[363846830,1748897452763,-350.72592554,0.00016701,2]
[363846831,1748897452774,-470.0,0.00016703,2]
[363846832,1748897452784,-440.0,0.00016703,2]
[363846833,1748897452794,-440.0,0.00016703,2]
[363846834,1748897452804,-440.0,0.00016975,2]
[363846835,1748897452814,-440.0,0.00016975,2]
[363846836,1748897452824,-440.0,0.00016977,2]
[363846837,1748897452834,-440.0,0.00016977,2]
[363846838,1748897452843,-450.0,0.00017249,2]
[363846839,1748897452854,-440.0,0.00017249,2]
[363846840,1748897452864,-440.0,0.00017251,2]
[363846841,1748897452873,-440.0,0.00017251,2]
[363846842,1748897452882,-400.0,0.00017523,2]
[363846843,1748897452892,-440.0,0.00017525,2]
[363846844,1748897452901,-400.0,0.00017525,2]
[363846845,1748897452910,-440.0,0.00017799,2]
[363846846,1748897452918,-223.98,0.00018073,2]
[363846847,1748897452926,-939.47779646,0.00021999,2]
[363846848,1748897453141,-440.0,0.00016701,2]
[363846849,1748897453152,-285.27306679,0.00016702,2]
[363846850,1748897453164,-154.72693321,0.00016702,2]
[363846851,1748897453174,-508.07271145,0.00016702,2]
[363846852,1748897453184,-391.74035534,0.00016703,2]
[363846854,1748897570345,1605.18,0.0001552,2]
[363846856,1748897933694,4764.09978332,0.0001552,2]
[363846860,1748898449894,414.471009,0.00013699,2]
[363846947,1748898632589,-178.1940173,0.00015681,2]
[363846949,1748898632602,-160.0,0.0001581,2]
[363846951,1748898632612,-215.63661313,0.00015811,2]
[363846953,1748898632624,-3670.31819637,0.00015811,2]
[363846955,1748898632635,-5000.0,0.00016,2]
[363846957,1748898632644,-156.587,0.00016692,2]
[363846959,1748898632654,-300.0,0.00016697,2]
[363846961,1748898632664,-300.0,0.00016698,2]